fUSD/lending_fUSD_20250215
["ID","MTS","AMOUNT","RATE_DAILY","PERIOD"]
[353149262,1739611886627,-500.0,0.00012027,2]
[353149263,1739611886637,-1292.79,0.00012027,2]
[353149264,1739611886647,-500.0,0.00012027,2]
[353149265,1739611886656,-500.0,0.00012027,2]
[353149266,1739611886666,-1639.04,0.00012027,2]
[353149267,1739611886675,-695.46,0.00012027,2]
[353149268,1739611886685,-746.86,0.00012027,2]
[353149269,1739611886694,-850.54,0.00012027,2]
[353149270,1739611886705,-734.88,0.00012027,2]
[353149271,1739611886715,-1135.06,0.00012027,2]
[353149272,1739611886724,-834.87,0.00012027,2]
[353149273,1739611886734,-505.21,0.00012027,2]
[353149274,1739611886743,-367.0079511,0.00012027,2]
[353149275,1739611886753,-622.66,0.00012027,2]
[353149276,1739611886763,-824.06,0.00012027,2]
[353149277,1739611886772,-500.0,0.00012027,2]
[353149278,1739611886781,-1491.64,0.00012027,2]
[353149279,1739611886790,-500.0,0.00012027,2]
[353149280,1739611886800,-587.54,0.00012027,2]
[353149281,1739611886810,-510.9,0.00012027,2]
[353149282,1739611886819,-500.0,0.00012027,2]
[353149283,1739611886829,-1098.7,0.00012027,2]
[353149284,1739611886838,-879.19,0.00012027,2]
[353149285,1739611886863,-697.57,0.00012027,2]
[353149286,1739611886873,-845.88,0.00012027,2]
[353149287,1739611886882,-500.0,0.00012027,2]
[353149288,1739611886891,-500.0,0.00012027,2]
[353149289,1739611886900,-500.0,0.00012027,2]
[353149290,1739611886910,-927.84,0.00012027,2]
[353149291,1739611886919,-1000.0,0.00012027,2]
[353149292,1739611886930,-500.0,0.00012027,2]
[353149293,1739611886940,-910.15,0.00012027,2]
[353149294,1739611886949,-1188.23,0.00012027,2]
[353149295,1739611886959,-677.74,0.00012027,2]
[353149296,1739611886969,-500.0,0.00012027,2]
[353149297,1739611886978,-500.0,0.00012027,2]
[353149298,1739611886987,-1676.44,0.00012027,2]
[353149299,1739611886997,-964.59,0.00012027,2]
[353149300,1739611887006,-1174.04,0.00012027,2]
[353149301,1739611887167,-500.0,0.00012027,2]
[353149302,1739611887191,-728.47,0.00012027,2]
[353149303,1739611887201,-703.23,0.00012027,2]
[353149304,1739611887211,-500.0,0.00012027,2]
[353149305,1739611887221,-1086.08,0.00012027,2]
[353149306,1739611887230,-500.0,0.00012027,2]
[353149307,1739611887240,-295.41137743,0.00012027,2]
[353149308,1739611887250,-419.53807146,0.00012027,2]
[353149309,1739611887260,-748.0,0.00012027,2]
[353149310,1739611887271,-957.02,0.00012027,2]
[353149311,1739611887281,-1604.66,0.00012027,2]
[353149312,1739611887291,-704.0,0.00012027,2]
[353149313,1739611887301,-623.33,0.00012027,2]
[353149314,1739611887311,-2157.01,0.00012027,2]
[353149315,1739611887321,-4000.0,0.0001204,2]
[353149316,1739611887330,-31977.69060721,0.00012075,2]
[353149317,1739611887340,-305.0,0.00012075,2]
[353149318,1739611887350,-500.0,0.00012081,2]
[353149319,1739611887360,-30392.0,0.000121,2]
[353149320,1739611887370,-535.25605401,0.00012101,2]
[353149321,1739611887379,-2082.15,0.00012108,2]
[353149322,1739611887389,-1356.16,0.00012108,2]
[353149323,1739611887399,-725.47,0.00012108,2]
[353149324,1739611887408,-533.638194,0.00012109,2]
[353149325,1739611887418,-569.681091,0.00012109,2]
[353149326,1739611887427,-169.44966499,0.00012109,2]
[353149327,1739611887437,-500.0,0.00012109,2]
[353149328,1739611887446,-500.0,0.00012109,2]
[353149329,1739611887456,-661.16,0.00012109,2]
[353149330,1739611887466,-602.88,0.00012109,2]
[353149331,1739611887476,-500.0,0.00012109,2]
[353149332,1739611887485,-602.21,0.00012109,2]
[353149333,1739611887495,-500.0,0.00012109,2]
[353149334,1739611887505,-559.76,0.00012109,2]
[353149335,1739611887515,-500.0,0.00012109,2]
[353149336,1739611887524,-500.0,0.00012109,2]
[353149337,1739611887534,-500.0,0.00012109,2]
[353149338,1739611887543,-174.15498568,0.00012109,2]
[353149339,1739611887552,-500.0,0.00012109,2]
[353149340,1739611887561,-194.9143064,0.00012109,2]
[353149341,1739611887570,-642.55,0.00012109,2]
[353149342,1739611887580,-500.0,0.00012109,2]
[353149343,1739611887591,-639.54334972,0.00012109,2]
[353149344,1739611887604,-500.0,0.00012109,2]
[353149345,1739611887613,-509.2,0.00012109,2]
[353149346,1739611887622,-583.23,0.00012109,2]
[353149347,1739611887631,-588.51,0.00012109,2]
[353149348,1739611887642,-500.0,0.00012109,2]
[353149349,1739611887652,-666.54,0.00012109,2]
[353149350,1739611887662,-500.0,0.00012109,2]
[353149351,1739611887672,-553.58,0.00012109,2]
[353149352,1739611887685,-656.03,0.00012109,2]
[353149353,1739611887696,-324.13009613,0.00012109,2]
[353149354,1739611887707,-500.0,0.00012109,2]
[353149355,1739611887716,-569.62,0.00012109,2]
[353149356,1739611887727,-500.0,0.00012109,2]
[353149357,1739611887736,-476.82901694,0.00012109,2]
[353149358,1739611887745,-500.0,0.00012109,2]
[353149359,1739611887755,-628.27,0.00012109,2]
[353149360,1739611887765,-619.35,0.00012109,2]
[353149361,1739611887775,-572.09,0.00012109,2]
[353149362,1739611887784,-682.02,0.00012109,2]
[353149363,1739611887793,-500.0,0.00012109,2]
[353149364,1739611887803,-812.88,0.00012109,2]
[353149365,1739611887812,-500.0,0.00012109,2]
[353149366,1739611887821,-500.0,0.00012109,2]
[353149367,1739611887831,-672.16,0.00012109,2]
[353149368,1739611887840,-500.0,0.00012109,2]
[353149369,1739611887849,-500.0,0.00012109,2]
[353149370,1739611887859,-363.78297812,0.00012109,2]
[353149371,1739611887868,-575.78,0.00012109,2]
[353149372,1739611887878,-615.98,0.00012109,2]
[353149373,1739611887888,-500.0,0.00012109,2]
[353149374,1739611887898,-500.0,0.00012109,2]
[353149375,1739611887907,-500.0,0.00012109,2]
[353149376,1739611887916,-500.0,0.00012109,2]
[353149377,1739611887926,-691.81,0.00012109,2]
[353149378,1739611887936,-500.0,0.00012109,2]
[353149379,1739611887945,-778.06,0.00012109,2]
[353149380,1739611887955,-648.19,0.00012109,2]
[353149381,1739611887965,-536.79,0.00012109,2]
[353149382,1739611887974,-638.9,0.00012109,2]
[353149383,1739611887984,-500.0,0.00012109,2]
[353149384,1739611887993,-1073.44,0.00012109,2]
[353149385,1739611888003,-676.69,0.00012109,2]
[353149386,1739611888013,-500.0,0.00012109,2]
[353149387,1739611888023,-568.45,0.00012109,2]
[353149388,1739611888032,-1057.92,0.00012109,2]
[353149389,1739611888042,-500.0,0.00012109,2]
[353149390,1739611888052,-1086.69,0.00012109,2]
[353149391,1739611888062,-829.19,0.00012109,2]
[353149392,1739611888072,-500.0,0.00012109,2]
[353149393,1739611888082,-793.24,0.00012109,2]
[353149394,1739611888092,-500.0,0.00012109,2]
[353149395,1739611888101,-615.24,0.00012109,2]
[353149396,1739611888111,-783.17,0.00012109,2]
[353149397,1739611888120,-991.47,0.00012109,2]
[353149398,1739611888129,-1433.75,0.00012109,2]
[353149399,1739611888138,-971.58,0.00012109,2]
[353149400,1739611888147,-789.55,0.00012109,2]
[353149401,1739611888157,-552.21,0.00012109,2]
[353149402,1739611888167,-500.0,0.00012109,2]
[353149403,1739611888177,-1175.04,0.00012109,2]
[353149404,1739611888186,-500.0,0.00012109,2]
[353149405,1739611888195,-731.56,0.00012109,2]
[353149406,1739611888205,-547.81021183,0.00012109,2]
[353149407,1739611888214,-2056.44,0.00012109,2]
[353149408,1739611888223,-529.5,0.00012109,2]
[353149409,1739611888232,-703.41,0.00012109,2]
[353149410,1739611888242,-895.05,0.00012109,2]
[353149411,1739611888251,-717.51,0.00012109,2]
[353149412,1739611888261,-610.86,0.00012109,2]
[353149413,1739611888271,-1754.36,0.00012109,2]
[353149414,1739611888280,-743.87,0.00012109,2]
[353149415,1739611888290,-1009.67,0.00012109,2]
[353149416,1739611888299,-2982.91,0.00012109,2]
[353149417,1739611888309,-995.96,0.00012109,2]
[353149418,1739611888318,-1159.35,0.00012109,2]
[353149419,1739611888327,-581.33,0.00012109,2]
[353149420,1739611888337,-779.91,0.00012109,2]
[353149421,1739611888347,-735.73,0.00012109,2]
[353149422,1739611888356,-1222.91,0.00012109,2]
[353149423,1739611888366,-1141.54,0.00012109,2]
[353149424,1739611888375,-921.4,0.00012109,2]
[353149425,1739611888385,-657.56,0.00012109,2]
[353149426,1739611888394,-802.93,0.00012109,2]
[353149427,1739611888403,-560.26,0.00012109,2]
[353149428,1739611888412,-646.72,0.00012109,2]
[353149429,1739611888422,-1756.73,0.00012109,2]
[353149430,1739611888431,-2263.15,0.00012109,2]
[353149431,1739611888440,-630.63,0.00012109,2]
[353149432,1739611888449,-645.55,0.00012109,2]
[353149433,1739611888458,-500.0,0.00012109,2]
[353149434,1739611888468,-904.92,0.00012109,2]
[353149435,1739611888477,-864.22,0.00012109,2]
[353149436,1739611888487,-500.0,0.00012109,2]
[353149437,1739611888496,-830.74,0.00012109,2]
[353149438,1739611888506,-769.25,0.00012109,2]
[353149439,1739611888515,-897.43,0.00012109,2]
[353149440,1739611888524,-1011.81,0.00012109,2]
[353149441,1739611888533,-500.0,0.00012109,2]
[353149442,1739611888542,-1292.79,0.00012109,2]
[353149443,1739611888552,-500.0,0.00012109,2]
[353149444,1739611888562,-500.0,0.00012109,2]
[353149445,1739611888571,-1639.04,0.00012109,2]
[353149446,1739611888581,-695.46,0.00012109,2]
[353149447,1739611888590,-746.86,0.00012109,2]
[353149448,1739611888602,-850.54,0.00012109,2]
[353149449,1739611888612,-734.88,0.00012109,2]
[353149450,1739611888621,-1135.06,0.00012109,2]
[353149451,1739611888630,-834.87,0.00012109,2]
[353149452,1739611888642,-505.21,0.00012109,2]
[353149453,1739611888652,-622.66,0.00012109,2]
[353149454,1739611888663,-824.06,0.00012109,2]
[353149455,1739611888672,-500.0,0.00012109,2]
[353149456,1739611888681,-1491.64,0.00012109,2]
[353149457,1739611888691,-500.0,0.00012109,2]
[353149458,1739611888700,-587.54,0.00012109,2]
[353149459,1739611888709,-510.9,0.00012109,2]
[353149460,1739611888719,-500.0,0.00012109,2]
[353149461,1739611888729,-1098.7,0.00012109,2]
[353149462,1739611888739,-879.19,0.00012109,2]
[353149463,1739611888748,-697.57,0.00012109,2]
[353149464,1739611888759,-845.88,0.00012109,2]
[353149465,1739611888769,-153.76407471,0.00012109,2]
[353149466,1739611888778,-500.0,0.00012109,2]
[353149467,1739611888788,-500.0,0.00012109,2]
[353149468,1739611888798,-927.84,0.00012109,2]
[353149469,1739611888808,-1000.0,0.00012109,2]
[353149470,1739611888818,-500.0,0.00012109,2]
[353149471,1739611888828,-910.15,0.00012109,2]
[353149472,1739611888838,-1188.23,0.00012109,2]
[353149473,1739611888848,-677.74,0.00012109,2]
[353149474,1739611888858,-500.0,0.00012109,2]
[353149475,1739611888867,-1676.44,0.00012109,2]
[353149476,1739611888877,-964.59,0.00012109,2]
[353149477,1739611888887,-1174.04,0.00012109,2]
[353149478,1739611888896,-500.0,0.00012109,2]
[353149479,1739611888906,-728.47,0.00012109,2]
[353149480,1739611888915,-703.23,0.00012109,2]
[353149481,1739611888925,-500.0,0.00012109,2]
[353149482,1739611888934,-1086.08,0.00012109,2]
[353149483,1739611888944,-500.0,0.00012109,2]
[353149484,1739611888954,-748.0,0.00012109,2]
[353149485,1739611888964,-957.02,0.00012109,2]
[353149486,1739611888974,-1604.66,0.00012109,2]
[353149487,1739611888984,-704.0,0.00012109,2]
[353149488,1739611888994,-623.33,0.00012109,2]
[353149489,1739611889004,-2157.01,0.00012109,2]
[353149490,1739611889013,-30151.48224858,0.00012174,2]
[353149491,1739611889023,-872.98,0.0001219,2]
[353149492,1739611889032,-1506.85,0.0001219,2]
[353149493,1739611889042,-3772.57627099,0.00012191,2]
[353149494,1739611889051,-533.638194,0.00012191,2]
[353149495,1739611889062,-569.681091,0.00012191,2]
[353149496,1739611889071,-278.92540616,0.00012191,2]
[353149497,1739611889082,-500.0,0.00012191,2]
[353149498,1739611889091,-661.16,0.00012191,2]
[353149499,1739611889101,-602.88,0.00012191,2]
[353149500,1739611889110,-647.519515,0.00012191,2]
[353149501,1739611889119,-602.21,0.00012191,2]
[353149502,1739611889129,-500.0,0.00012191,2]
[353149503,1739611889138,-559.76,0.00012191,2]
[353149504,1739611889148,-500.0,0.00012191,2]
[353149505,1739611889157,-500.0,0.00012191,2]
[353149506,1739611889167,-500.0,0.00012191,2]
[353149507,1739611889176,-500.0,0.00012191,2]
[353149508,1739611889185,-642.55,0.00012191,2]
[353149509,1739611889194,-500.0,0.00012191,2]
[353149510,1739611889203,-500.0,0.00012191,2]
[353149511,1739611889213,-509.2,0.00012191,2]
[353149512,1739611889222,-583.23,0.00012191,2]
[353149513,1739611889231,-588.51,0.00012191,2]
[353149514,1739611889240,-500.0,0.00012191,2]
[353149515,1739611889250,-666.54,0.00012191,2]
[353149516,1739611889259,-500.0,0.00012191,2]
[353149517,1739611889269,-553.58,0.00012191,2]
[353149518,1739611889279,-656.03,0.00012191,2]
[353149519,1739611889289,-500.0,0.00012191,2]
[353149520,1739611889298,-569.62,0.00012191,2]
[353149521,1739611889307,-500.0,0.00012191,2]
[353149522,1739611889316,-500.0,0.00012191,2]
[353149523,1739611889325,-628.27,0.00012191,2]
[353149524,1739611889335,-619.35,0.00012191,2]
[353149525,1739611889344,-572.09,0.00012191,2]
[353149526,1739611889353,-682.02,0.00012191,2]
[353149527,1739611889362,-500.0,0.00012191,2]
[353149528,1739611889371,-812.88,0.00012191,2]
[353149529,1739611889380,-500.0,0.00012191,2]
[353149530,1739611889390,-500.0,0.00012191,2]
[353149531,1739611889399,-672.16,0.00012191,2]
[353149532,1739611889408,-500.0,0.00012191,2]
[353149533,1739611889418,-500.0,0.00012191,2]
[353149534,1739611889428,-575.78,0.00012191,2]
[353149535,1739611889438,-615.98,0.00012191,2]
[353149536,1739611889447,-500.0,0.00012191,2]
[353149537,1739611889457,-500.0,0.00012191,2]
[353149538,1739611889467,-500.0,0.00012191,2]
[353149539,1739611889477,-500.0,0.00012191,2]
[353149540,1739611889486,-691.81,0.00012191,2]
[353149541,1739611889496,-500.0,0.00012191,2]
[353149542,1739611889506,-778.06,0.00012191,2]
[353149543,1739611889517,-648.19,0.00012191,2]
[353149544,1739611889527,-536.79,0.00012191,2]
[353149545,1739611889536,-638.9,0.00012191,2]
[353149546,1739611889545,-500.0,0.00012191,2]
[353149547,1739611889555,-1073.44,0.00012191,2]
[353149548,1739611889564,-676.69,0.00012191,2]
[353149549,1739611889573,-500.0,0.00012191,2]
[353149550,1739611889583,-568.45,0.00012191,2]
[353149551,1739611889592,-1057.92,0.00012191,2]
[353149552,1739611889604,-500.0,0.00012191,2]
[353149553,1739611889614,-1086.69,0.00012191,2]
[353149554,1739611889625,-829.19,0.00012191,2]
[353149555,1739611889635,-500.0,0.00012191,2]
[353149556,1739611889646,-793.24,0.00012191,2]
[353149557,1739611889656,-500.0,0.00012191,2]
[353149558,1739611889666,-615.24,0.00012191,2]
[353149559,1739611889675,-783.17,0.00012191,2]
[353149560,1739611889685,-991.47,0.00012191,2]
[353149561,1739611889694,-1433.75,0.00012191,2]
[353149562,1739611889704,-971.58,0.00012191,2]
[353149563,1739611889714,-789.55,0.00012191,2]
[353149564,1739611889723,-552.21,0.00012191,2]
[353149565,1739611889733,-617.98201363,0.00012191,2]
[353149566,1739611889743,-1175.04,0.00012191,2]
[353149567,1739611889753,-500.0,0.00012191,2]
[353149568,1739611889762,-731.56,0.00012191,2]
[353149569,1739611889772,-2056.44,0.00012191,2]
[353149570,1739611889782,-529.5,0.00012191,2]
[353149571,1739611889792,-895.05,0.00012191,2]
[353149572,1739611889801,-717.51,0.00012191,2]
[353149573,1739611889811,-610.86,0.00012191,2]
[353149574,1739611889820,-1754.36,0.00012191,2]
[353149575,1739611889830,-743.87,0.00012191,2]
[353149576,1739611889839,-1009.67,0.00012191,2]
[353149577,1739611889848,-2982.91,0.00012191,2]
[353149578,1739611889858,-995.96,0.00012191,2]
[353149579,1739611889867,-1159.35,0.00012191,2]
[353149580,1739611889877,-581.33,0.00012191,2]
[353149581,1739611889886,-779.91,0.00012191,2]
[353149582,1739611889896,-735.73,0.00012191,2]
[353149583,1739611889906,-1222.91,0.00012191,2]
[353149584,1739611889915,-1141.54,0.00012191,2]
[353149585,1739611889924,-921.4,0.00012191,2]
[353149586,1739611889934,-657.56,0.00012191,2]
[353149587,1739611889943,-802.93,0.00012191,2]
[353149588,1739611889953,-560.26,0.00012191,2]
[353149589,1739611889962,-646.72,0.00012191,2]
[353149590,1739611889971,-1756.73,0.00012191,2]
[353149591,1739611889981,-2263.15,0.00012191,2]
[353149592,1739611889990,-630.63,0.00012191,2]
[353149593,1739611890000,-645.55,0.00012191,2]
[353149594,1739611890009,-500.0,0.00012191,2]
[353149595,1739611890019,-904.92,0.00012191,2]
[353149596,1739611890028,-864.22,0.00012191,2]
[353149597,1739611890037,-500.0,0.00012191,2]
[353149598,1739611890046,-830.74,0.00012191,2]
[353149599,1739611890055,-769.25,0.00012191,2]
[353149600,1739611890064,-897.43,0.00012191,2]
[353149601,1739611890073,-1011.81,0.00012191,2]
[353149602,1739611890082,-500.0,0.00012191,2]
[353149603,1739611890092,-1292.79,0.00012191,2]
[353149604,1739611890101,-429.78577894,0.00012191,2]
[353149605,1739611890110,-500.0,0.00012191,2]
[353149606,1739611890119,-1639.04,0.00012191,2]
[353149607,1739611890128,-695.46,0.00012191,2]
[353149608,1739611890138,-746.86,0.00012191,2]
[353149609,1739611890299,-850.54,0.00012191,2]
[353149610,1739611890309,-734.88,0.00012191,2]
[353149611,1739611890318,-1135.06,0.00012191,2]
[353149612,1739611890327,-834.87,0.00012191,2]
[353149613,1739611890336,-505.21,0.00012191,2]
[353149614,1739611890346,-622.66,0.00012191,2]
[353149615,1739611890355,-824.06,0.00012191,2]
[353149616,1739611890365,-500.0,0.00012191,2]
[353149617,1739611890374,-1491.64,0.00012191,2]
[353149618,1739611890383,-500.0,0.00012191,2]
[353149619,1739611890393,-587.54,0.00012191,2]
[353149620,1739611890402,-510.9,0.00012191,2]
[353149621,1739611890412,-500.0,0.00012191,2]
[353149622,1739611890421,-1098.7,0.00012191,2]
[353149623,1739611890431,-879.19,0.00012191,2]
[353149624,1739611890441,-697.57,0.00012191,2]
[353149625,1739611890450,-845.88,0.00012191,2]
[353149626,1739611890460,-500.0,0.00012191,2]
[353149627,1739611890469,-500.0,0.00012191,2]
[353149628,1739611890479,-927.84,0.00012191,2]
[353149629,1739611890488,-750.60371373,0.00012191,2]
[353149630,1739611890497,-500.0,0.00012191,2]
[353149631,1739611890509,-910.15,0.00012191,2]
[353149632,1739611890520,-1188.23,0.00012191,2]
[353149633,1739611890529,-677.74,0.00012191,2]
[353149634,1739611890539,-500.0,0.00012191,2]
[353149635,1739611890548,-1676.44,0.00012191,2]
[353149636,1739611890558,-964.59,0.00012191,2]
[353149637,1739611890568,-1174.04,0.00012191,2]
[353149638,1739611890577,-206.65378358,0.00012191,2]
[353149639,1739611890586,-728.47,0.00012191,2]
[353149640,1739611890597,-703.23,0.00012191,2]
[353149641,1739611890608,-500.0,0.00012191,2]
[353149642,1739611890618,-1086.08,0.00012191,2]
[353149643,1739611890627,-500.0,0.00012191,2]
[353149644,1739611890639,-1604.66,0.00012191,2]
[353149645,1739611890648,-957.02,0.00012191,2]
[353149646,1739611890657,-748.0,0.00012191,2]
[353149647,1739611890667,-623.33,0.00012191,2]
[353149648,1739611890677,-704.0,0.00012191,2]
[353149649,1739611890688,-2157.01,0.00012191,2]
[353149650,1739611890697,-500.0,0.00012218,2]
[353149651,1739611890706,-280.0,0.0001223,2]
[353149652,1739611890715,-202.0,0.0001223,2]
[353149653,1739611890725,-2082.15,0.00012258,2]
[353149654,1739611890735,-725.47,0.00012258,2]
[353149655,1739611890744,-113119.0,0.00012258,2]
[353149656,1739611890754,-2882.6089346,0.00012264,2]
[353149657,1739611890766,-1000.0,0.0001227,2]
[353149658,1739611890776,-1356.16,0.00012272,2]
[353149659,1739611890786,-872.98,0.00012272,2]
[353149660,1739611890795,-1506.85,0.00012272,2]
[353149661,1739611890805,-533.638194,0.00012273,2]
[353149662,1739611890814,-569.681091,0.00012273,2]
[353149663,1739611890824,-500.0,0.00012273,2]
[353149664,1739611890834,-661.16,0.00012273,2]
[353149665,1739611890843,-602.88,0.00012273,2]
[353149666,1739611890853,-602.21,0.00012273,2]
[353149667,1739611890862,-389.39813661,0.00012273,2]
[353149668,1739611890872,-559.76,0.00012273,2]
[353149669,1739611890881,-255.56206314,0.00012273,2]
[353149670,1739611890891,-500.0,0.00012273,2]
[353149671,1739611890900,-500.0,0.00012273,2]
[353149672,1739611890911,-500.0,0.00012273,2]
[353149673,1739611890920,-642.55,0.00012273,2]
[353149674,1739611890929,-500.0,0.00012273,2]
[353149675,1739611890939,-500.0,0.00012273,2]
[353149676,1739611890948,-509.2,0.00012273,2]
[353149677,1739611890957,-583.23,0.00012273,2]
[353149678,1739611890966,-588.51,0.00012273,2]
[353149679,1739611890975,-500.0,0.00012273,2]
[353149680,1739611890984,-666.54,0.00012273,2]
[353149681,1739611890993,-500.0,0.00012273,2]
[353149682,1739611891002,-553.58,0.00012273,2]
[353149683,1739611891011,-656.03,0.00012273,2]
[353149684,1739611891023,-500.0,0.00012273,2]
[353149685,1739611891031,-569.62,0.00012273,2]
[353149686,1739611891041,-500.0,0.00012273,2]
[353149687,1739611891050,-500.0,0.00012273,2]
[353149688,1739611891060,-628.27,0.00012273,2]
[353149689,1739611891069,-619.35,0.00012273,2]
[353149690,1739611891079,-572.09,0.00012273,2]
[353149691,1739611891088,-682.02,0.00012273,2]
[353149692,1739611891098,-581.50071596,0.00012273,2]
[353149693,1739611891108,-812.88,0.00012273,2]
[353149694,1739611891118,-500.0,0.00012273,2]
[353149695,1739611891128,-500.0,0.00012273,2]
[353149696,1739611891137,-672.16,0.00012273,2]
[353149697,1739611891147,-500.0,0.00012273,2]
[353149698,1739611891156,-500.0,0.00012273,2]
[353149699,1739611891166,-575.78,0.00012273,2]
[353149700,1739611891175,-615.98,0.00012273,2]
[353149701,1739611891184,-500.0,0.00012273,2]
[353149702,1739611891193,-500.0,0.00012273,2]
[353149703,1739611891203,-500.0,0.00012273,2]
[353149704,1739611891212,-500.0,0.00012273,2]
[353149705,1739611891220,-691.81,0.00012273,2]
[353149706,1739611891229,-500.0,0.00012273,2]
[353149707,1739611891238,-778.06,0.00012273,2]
[353149708,1739611891248,-648.19,0.00012273,2]
[353149709,1739611891258,-536.79,0.00012273,2]
[353149710,1739611891269,-638.9,0.00012273,2]
[353149711,1739611891278,-500.0,0.00012273,2]
[353149712,1739611891287,-1073.44,0.00012273,2]
[353149713,1739611891297,-676.69,0.00012273,2]
[353149714,1739611891306,-500.0,0.00012273,2]
[353149715,1739611891315,-568.45,0.00012273,2]
[353149716,1739611891324,-1057.92,0.00012273,2]
[353149717,1739611891334,-500.0,0.00012273,2]
[353149718,1739611891343,-1086.69,0.00012273,2]
[353149719,1739611891352,-829.19,0.00012273,2]
[353149720,1739611891362,-500.0,0.00012273,2]
[353149721,1739611891371,-793.24,0.00012273,2]
[353149722,1739611891380,-500.0,0.00012273,2]
[353149723,1739611891390,-615.24,0.00012273,2]
[353149724,1739611891400,-783.17,0.00012273,2]
[353149725,1739611891409,-991.47,0.00012273,2]
[353149726,1739611891419,-1433.75,0.00012273,2]
[353149727,1739611891427,-971.58,0.00012273,2]
[353149728,1739611891437,-789.55,0.00012273,2]
[353149729,1739611891446,-552.21,0.00012273,2]
[353149730,1739611891456,-1175.04,0.00012273,2]
[353149731,1739611891466,-500.0,0.00012273,2]
[353149732,1739611891475,-731.56,0.00012273,2]
[353149733,1739611891484,-2056.44,0.00012273,2]
[353149734,1739611891494,-529.5,0.00012273,2]
[353149735,1739611891503,-895.05,0.00012273,2]
[353149736,1739611891512,-717.51,0.00012273,2]
[353149737,1739611891523,-610.86,0.00012273,2]
[353149738,1739611891532,-1754.36,0.00012273,2]
[353149739,1739611891542,-743.87,0.00012273,2]
[353149740,1739611891551,-1009.67,0.00012273,2]
[353149741,1739611891560,-2982.91,0.00012273,2]
[353149742,1739611891569,-995.96,0.00012273,2]
[353149743,1739611891578,-1159.35,0.00012273,2]
[353149744,1739611891588,-581.33,0.00012273,2]
[353149745,1739611891598,-779.91,0.00012273,2]
[353149746,1739611891610,-735.73,0.00012273,2]
[353149747,1739611891619,-1222.91,0.00012273,2]
[353149748,1739611891628,-1141.54,0.00012273,2]
[353149749,1739611891638,-657.56,0.00012273,2]
[353149750,1739611891649,-921.4,0.00012273,2]
[353149751,1739611891658,-802.93,0.00012273,2]
[353149752,1739611891668,-560.26,0.00012273,2]
[353149753,1739611891678,-646.72,0.00012273,2]
[353149754,1739611891687,-1756.73,0.00012273,2]
[353149755,1739611891696,-2263.15,0.00012273,2]
[353149756,1739611891705,-630.63,0.00012273,2]
[353149757,1739611891715,-645.55,0.00012273,2]
[353149758,1739611891725,-500.0,0.00012273,2]
[353149759,1739611891735,-904.92,0.00012273,2]
[353149760,1739611891745,-864.22,0.00012273,2]
[353149761,1739611891755,-500.0,0.00012273,2]